Cogmind - Beta 14 @@@ ROGUE MODE // 2025.03.30 @ 17:59:25 Player: Skergy Result: Destroyed by 6Q-X2U(R) with Subdweller Beam Cannon Performance ------------- Evolutions (0) 0 Regions Visited (2) 400 Robots Destroyed (20) 100 Value Destroyed (510) 510 Prototype IDs (0) 0 Alien Tech Used (0) 0 Bonus (0) 0 TOTAL SCORE: 1010 Bonus ------- None Cogmind --------- Core Integrity 0/250 Matter 41/500 Energy 92/100 System Corruption 1% Temperature Cool (9) Movement Rolling (130) Ox2 Location -10/Subcaves Parts ------- > --- POWER (1) -------- (None) > --- PROPULSION (2) --- Subdweller Monowheel Subdweller Monowheel > --- UTILITY (2) ------ Huge Storage Unit High-capacity Matter Pod > --- WEAPON (2) ------- Light Cannon > --- INVENTORY (25) --- Light Ion Engine Aluminum Leg Aluminum Leg Aluminum Leg Aluminum Leg Heat Sink Medium Storage Unit Subdweller Optics Sensor Array Signal Interpreter Core Shielding Makeshift Light Armor Plating Subdweller Laser Battle Rifle Light Cannon Light Cannon Mining Laser Scrap Shield Fragment (46) Peak State ------------ > --- POWER ------------ Ion Engine > --- PROPULSION ------- Subdweller Monowheel Subdweller Monowheel > --- UTILITY ---------- Huge Storage Unit Makeshift Light Armor Plating > --- WEAPON ----------- Light Cannon Grenade Launcher > --- INVENTORY -------- Light Ion Engine Aluminum Leg Aluminum Leg Aluminum Leg Aluminum Leg Heat Sink Medium Storage Unit High-capacity Matter Pod Subdweller Optics Sensor Array Signal Interpreter Core Shielding Subdweller Laser Battle Rifle Light Cannon Light Cannon Mining Laser [Rating: 14] Favorites ----------- Power Ion Engine Engine Ion Engine Propulsion Aluminum Leg Treads Light Treads Leg Aluminum Leg Wheel Subdweller Monowheel Utility Huge Storage Unit Device Structural Scanner Storage Huge Storage Unit Protection Core Shielding Weapon Light Cannon Energy Gun Medium Laser Ballistic Gun Assault Rifle Ballistic Cannon Light Cannon Launcher Grenade Launcher Special Weapon Mining Laser Build | -11 -10 -10 ------- Run | Yrd Mat Sub Slots Evolved . | . . . Power . | . . . Propulsion . | . . . Utility . | . . . Weapon . | . . . Parts Attached 31 | 7 13 11 Power 3 | 1 2 . Engine 3 | 1 2 . Core . | . . . Reactor . | . . . Propulsion 7 | 2 3 2 Treads 2 | 2 . . Leg 3 | . 3 . Wheel 2 | . . 2 Hover . | . . . Flight . | . . . Utility 7 | 1 4 2 Device 1 | . 1 . Storage 4 | 1 2 1 Processor . | . . . Hackware . | . . . Protection 2 | . 1 1 Artifact . | . . . Weapon 14 | 3 4 7 Energy Gun 3 | 2 1 . Energy Cannon . | . . . Ballistic Gun 2 | 1 1 . Ballistic Cannon 4 | . 2 2 Launcher 2 | . . 2 Special Weapon 3 | . . 3 Impact Weapon . | . . . Slashing Weapon . | . . . Piercing Weapon . | . . . Special Melee Weapon . | . . . Unidentified Prototypes . | . . . Parts Lost 9 | . 7 2 Power 3 | . 2 1 Propulsion 2 | . 2 . Utility . | . . . Weapon 4 | . 3 1 Highest Loss Streak 3 | . 3 2 To Critical Strikes . | . . . Average Slot Usage (%) 97 | . 96 99 Engine 13 | . 13 13 Treads 2 | . 3 . Leg 20 | . 23 16 Wheel 4 | . . 11 Device 1 | . 2 . Storage 14 | . 14 14 Protection 11 | . 9 14 Energy Gun 1 | . 3 . Ballistic Cannon 18 | . 22 10 Launcher 5 | . . 13 Special Weapon 1 | . . 3 Peak Build Rating 14 | 6 8 14 Average Rating 8 | 4 7 11 On Entrance 4 | . 6 8 Naked Turns . | . . . Heaviest Build 95 | 11 92 95 Greatest Support 40 | 40 40 40 Greatest Overweight (x) 4 | . 4 4 Average Overweight (x) 1 | . . 2 Largest Inventory Capacity 25 | 8 25 25 Average Capacity 19 | 6 16 25 Most Carried 18 | 4 11 18 Average Carried 10 | 2 8 14 Final Capacity 25 | 8 25 25 Final Carried 18 | 4 11 18 Class Distribution -------------------- 100% | Mutant Dominant Class ---------------- Mutant | -10/Materials Mutant | -10/Subcaves Resources | -11 -10 -10 ----------- Run | Yrd Mat Sub Matter Collected 709 | 204 424 81 Remotely . | . . . Salvage Created 482 | . 359 123 Parts 36 | . 22 14 Haulers Intercepted . | . . . Recyclers Shooed . | . . . Parts Field Recycled . | . . . Retrieved Matter . | . . . Parts Self-Destructed 3 | . . 3 Prevented . | . . . Kills | -11 -10 -10 ------- Run | Yrd Mat Sub Combat Hostiles Destroyed 16 | . 11 5 Melee 1 | . 1 . Guns 5 | . 5 . Cannons 8 | . 5 3 AOE 2 | . . 2 Classes Destroyed 5 | . 4 1 Worker 1 | . 1 . Watcher 3 | . 3 . Swarmer 6 | . 3 3 Grunt 8 | . 8 . Subdweller 2 | . . 2 Best Kill Streak 4 | . 4 3 Combat Bots Only 3 | . 3 3 Max Kills in Single Turn 2 | . 1 2 Gunslinging . | . . . Exploded 1 | . . 1 Melee 1 | . 1 . Uniques/NPCs Destroyed . | . . . Combat | -11 -10 -10 -------- Run | Yrd Mat Sub Hostile Shots Fired 127 | . 113 14 Missed 36 | . 31 5 Damage Taken 1277 | . 1034 243 Core 255 | . 204 51 Absorbed by Shields . | . . . Redirected to Shielding 5 | . 5 . Core Remaining (%) 100 | 100 . . Volleys Fired 92 | . 64 28 Largest 2 | . 2 2 Hottest 105 | . 105 100 Shots Fired 153 | . 115 38 Gun 78 | . 78 . Cannon 57 | . 37 20 Launcher 10 | . . 10 Special 8 | . . 8 Kinetic 88 | . 68 20 Thermal 55 | . 47 8 Explosive 10 | . . 10 Electromagnetic . | . . . Robot Hit Streak 24 | . 5 24 Robot Miss Streak 4 | . 4 1 Penetration Max . | . . . Secondary Targets 2 | . 2 . Max Gunslinging Chain 1 | . 1 . Shots Hit Robots 83 | . 58 25 Core Hits 38 | . 24 14 Critical Kills . | . . . Critical Parts Destroyed . | . . . Critical Strikes 3 | . 3 . Burn 2 | . 2 . Blast 1 | . 1 . Melee Attacks . | . . . Impact . | . . . Slashing . | . . . Piercing . | . . . Sneak Attacks . | . . . Combat Hostiles . | . . . Follow-up Attacks . | . . . Damage Inflicted 1801 | . 908 893 Guns 594 | . 594 . Cannons 617 | . 310 307 Explosions 563 | . . 563 Melee . | . . . Ramming 27 | . 4 23 Kinetic 872 | . 565 307 Thermal 339 | . 339 . Explosive 563 | . . 563 Electromagnetic . | . . . Impact . | . . . Slashing . | . . . Piercing . | . . . Highest Corruption 1 | . 1 1 Average Corruption 1 | . 1 1 Corruption Purged . | . . . Corruption Blocked . | . . . Effects 17 | . 6 11 Message Errors 3 | . 1 2 Matter Fused 4 | . 2 2 Heat Flow Errors 4 | . 1 3 Energy Discharges 3 | . 1 2 Data Loss (minor) 1 | . . 1 Misfires 1 | . . 1 Alerts 1 | . 1 . Overload Shots . | . . . Overflow Damage 9 | . 9 . Projectiles 9 | . 9 . Explosions . | . . . Melee . | . . . Knockbacks 4 | . 3 1 Impact . | . . . Kinetic 4 | . 3 1 Secondary . | . . . Self-Inflicted Damage 37 | . . 37 Shots 1 | . . 1 Rammed 2 | . . 2 Targets Rammed 3 | . 1 2 Kicked 1 | . 1 . Crushed . | . . . Highest Temperature 407 | . 407 253 Average Temperature 167 | . 172 118 Received Heat Transfer 585 | . 558 27 Effects 4 | . 4 . Shutdowns 2 | . 2 . Interference 1 | . 1 . Damage (minor) 1 | . 1 . Siege Activations . | . . . Robots Corrupted . | . . . Combat Hostiles . | . . . Parts Fried . | . . . Impact Corruptions . | . . . Robots Melted . | . . . Combat Hostiles . | . . . Parts Melted . | . . . Heat Transferred 977 | . 977 . Parts Sabotaged . | . . . Parts Stolen . | . . . Parts Stripped . | . . . Power Chain Reactions . | . . . Alert | -11 -10 -10 ------- Run | Yrd Mat Sub Peak Influence 155 | . 155 . Initial . | . . . Average 41 | . 43 . Maximum Alert Level . | . . . Low Security (%) 100 | 100 100 . Level 1 . | . . . Level 2 . | . . . Level 3 . | . . . Level 4 . | . . . Level 5 . | . . . High Security . | . . . Max Security . | . . . Squads Dispatched . | . . . Investigation . | . . . Extermination . | . . . Reinforcement . | . . . Assault . | . . . Garrison . | . . . Intercept . | . . . Searches Triggered . | . . . Construction Impeded . | . . . Haulers Reinforced . | . . . Active Scanning Responses . | . . . Cargo Convoy Interrupts . | . . . Stealth | -11 -10 -10 --------- Run | Yrd Mat Sub Distress Signals 1 | . 1 . Communications Jammed . | . . . Distress Signals . | . . . Times Spotted 21 | . 15 6 Peak Tracking Total 5 | . 5 2 Tactical Retreats . | . . . Traps | -11 -10 -10 ------- Run | Yrd Mat Sub Traps Triggered 1 | . 1 . Indirectly . | . . . Trap Hack Attempts . | . . . Triggered . | . . . Disarmed . | . . . Reprogrammed 6 | . 6 . Reused . | . . . Traps Extracted . | . . . Installed . | . . . Triggered . | . . . Machines | -11 -10 -10 ---------- Run | Yrd Mat Sub Machines Disabled 1 | . 1 . Max in Single Turn 1 | . 1 . Machines Repaired . | . . . Machines Dismantled . | . . . Machines Sabotaged . | . . . Overloaded Fab Kills . | . . . Hacking | -11 -10 -10 --------- Run | Yrd Mat Sub Machines Accessed 5 | . 5 . Terminals 5 | . 5 . Fabricators . | . . . Repair Stations . | . . . Recycling Units . | . . . Scanalyzers . | . . . Garrison Access . | . . . Total Hacks 24 | . 24 . Successful 13 | . 13 . Failed 11 | . 11 . Catastrophic 1 | . 1 . Database Lockouts . | . . . Manual 13 | . 13 . Terminals 24 | . 24 . Fabricators . | . . . Repair Stations . | . . . Recycling Units . | . . . Scanalyzers . | . . . Garrison Access . | . . . Terminal Hacks 6 | . 6 . Locate Traps 1 | . 1 . Reprogram Traps 1 | . 1 . Maintenance Status 1 | . 1 . Transport Status 1 | . 1 . Zone Layout 2 | . 2 . Fabricator Hacks . | . . . Repair Station Hacks . | . . . Recycling Unit Hacks . | . . . Scanalyzer . | . . . Garrison Access Hacks . | . . . Unauthorized Hacks 7 | . 7 . Terminals 7 | . 7 . Track 1 | . 1 . Assimilate 1 | . 1 . Botnet 4 | . 4 . Operators 1 | . 1 . Fabricators . | . . . Repair Stations . | . . . Recycling Units . | . . . Scanalyzers . | . . . Garrison Access . | . . . Data Cores Recovered . | . . . Used . | . . . Hacking Detections 5 | . 5 . Full Trace Events . | . . . Feedback Events . | . . . Feedback Blocked . | . . . Robot Schematics Acquired . | . . . Robots Built . | . . . Authchips . | . . . Time . | . . . Total Robot Build Rating . | . . . Part Schematics Acquired . | . . . Parts Built . | . . . Authchips . | . . . Time . | . . . Total Part Build Rating . | . . . Parts Repaired . | . . . Time . | . . . Parts Recycled . | . . . Recycled Matter . | . . . Retrieved Matter . | . . . Retrieved Components . | . . . Parts Scanalyzed . | . . . Part Schematics Acquired . | . . . Parts Damaged . | . . . Bothacking | -11 -10 -10 ------------ Run | Yrd Mat Sub Used RIF Installer . | . . . Robots Hacked . | . . . Non-combat . | . . . Combat . | . . . Robot Hacks Applied . | . . . Relay Couplers Released . | . . . Fabnet Peak Effective % . | . . . Robots Rewired . | . . . Allies Hacked . | . . . Hacks Repelled . | . . . Allies | -11 -10 -10 -------- Run | Yrd Mat Sub Total Allies . | . . . Largest Group . | . . . Highest-Rated Group . | . . . Highest-Rated Ally . | . . . Total Orders . | . . . Ally Attacks . | . . . Total Damage . | . . . Kills . | . . . Allies Corrupted . | . . . Allies Melted . | . . . Intel | -11 -10 -10 ------- Run | Yrd Mat Sub Robot Analysis Total . | . . . Derelict Logs Recovered 1 | . . 1 Drone Launches . | . . . Drone Recoveries . | . . . Exploration | -11 -10 -10 ------------- Run | Yrd Mat Sub Turns Passed 2547 | 76 1515 956 Spaces Moved 944 | 42 482 420 Core 4 | 4 . . Treads 101 | 38 63 . Legs 526 | . 419 107 Wheels 313 | . . 313 Hover . | . . . Flight . | . . . Fastest Speed 50 | 50 120 130 Average Speed 194 | 149 191 202 Slowest Speed 400 | 160 400 400 Overloaded Moves . | . . . Propulsion Burnouts . | . . . Robots Hopped . | . . . Cave-ins Triggered . | . . . Exploration Rate (%) 38 | 4 82 28 Regions Visited 2 Branch Regions 1 Pre-discovered Areas . | . . . Known Exits Taken . | . . . Unknown Exits Taken 2 | 1 1 . Scrap Searched . | . . . Spaces Dug . | . . . Terrain Destroyed 41 | . . 41 Melee . | . . . Projectile . | . . . AOE 41 | . . 41 Terrain Rammed . | . . . Walls Destroyed . | . . . Machines Disabled . | . . . Actions | -11 -10 -10 --------- Run | Yrd Mat Sub Total 1484 | 52 964 468 Wait 381 | . 381 . Move 942 | 41 481 420 Hop . | . . . Pick Up 24 | 4 16 4 Fast Attach 13 | 6 4 3 Attach 6 | . 6 . Detach 3 | . . 3 Swap 12 | 1 3 8 Drop 8 | . 8 . Fire 92 | . 64 28 Melee . | . . . Ram 2 | . . 2 Kick 1 | . 1 . Crush . | . . . Escape Stasis . | . . . Rewire . | . . . Trap . | . . . Miscellaneous . | . . . Route ------- -11/Scrapyard -10/Materials (discovered 4 exits: [*Mat x2] / [*Min] / [*Sub]) -10/Subcaves History --------- Turn | Location | Event 25 | -11/Scrapyard | Discovered new exit (range 15) 77 | -11/Scrapyard | Entered Materials 198 | -10/Materials | Discovered new exit (range 7) 243 | -10/Materials | Lost 3 parts (1p2w) 293 | -10/Materials | Core integrity fell below 50% 333 | -10/Materials | Build established: Mutant 339 | -10/Materials | Lost 3 parts (2n1w) 430 | -10/Materials | Discovered new exit (range 10) 677 | -10/Materials | Core integrity fell below 20% 1054 | -10/Materials | Discovered new exit (range 16) 1568 | -10/Materials | Discovered new exit (range 5) 1592 | -10/Materials | Entered Subcaves 1599 | -10/Subcaves | A swath of the cavern ceiling suddenly collapsed 1663 | -10/Subcaves | Shifting Twisted Machinery released Sub. Laser 1674 | -10/Subcaves | Shifting Twisted Machinery released Mak. Light Armor Plating 1985 | -10/Subcaves | Learned Materials non-interactive machine intel 1993 | -10/Subcaves | Shifting Twisted Machinery released Sub. Optics 2113 | -10/Subcaves | Shifting Twisted Machinery released Battle Rifle 2275 | -10/Subcaves | A swath of the cavern ceiling suddenly collapsed 2548 | -10/Subcaves | Destroyed by 6Q-X2U(R) with Subdweller Beam Cannon Last Messages --------------- 02225_ Acquired 4 matter. 02233_ Acquired Sub. Monowheel. 02235_ The unstable cave ceiling collapses. 02236_ Subatomizers dissect the Sub. Machine Gun. 02236_ Acquired 25 matter. 02240_ Acquired Scrap Shield Fragment. 02241_ The unstable cave ceiling collapses. 02270_ System corrupted: Component data lost. A swath of the cavern ceiling suddenly collapses. 02290_ System corrupted: Heat flow error (+254). 02405_ 10-V2W(u) deconstructs Twisted Machinery. 02413_ System corrupted: Matter fused (-8). 02418_ 10-V2W(u) deconstructs Twisted Machinery. 02442_ System corrupted: Energy discharge (-97). 02451_ 10-V2W(u) deconstructs Twisted Machinery. 02483_ Slammed into 10-V2W(u). 02534_ Grenade Launcher destroyed. 02535_ Ion Engine destroyed. 02543_ 3C-159(R) destroyed. 02547_ Acquired 39 matter. Map ----- +----------------------------------------------------+ | ??????????????????????????# & ###????#???????? | | ??????????????????????????# ####??????????????? | | ??????????????????????????## #?????###?????????? | | ???????????????????????????## #????# #####?????? | | ????????????????????????????# ####?? #?????? | | ????????????????????????????# ### ????? | | ???????????????????????????## ????? | | ???????????????????????????# ### ????? | | ???????????????????????????# #???????????? | | ??????????????????????#????# ## #?????? | | ??????????????????????# ???# #?????? | | ??????????????????????? ??## """" ## #?#### | | ???????????????????????# ?# ########????### | | ???????????????????????# ## ##???????????# | | ??????????????????????## #???####?????# | | ??????????????????????# ##### ##???## | | ??????????????????????#### #??## | | ??????????????????????##### " #???# | | ??????????????????????# ### " #?### | | ????????????????????### " ### # | | ???????????????????## ## ## | | ????????????????#### ### ## ## | | ???????????????## ## #### | | ???????????????# ### # #" " | | ???????????????# =# """ """ ## | | ???????????????## &@& """ """ #### | | ???????????????## R& ## "" ## #??# | | ???????????????# %# ###### "###### ##?## | | ???????????????## ## #???# #????###?## | | ????????????????# ## ### #???# #???????## | | ????????????????# ## ### ##???### #????#### | | ???????????????## #### #??????# ???## ## | | ???????????????# ### #??????# ##???# # | | ???????????????# #??????###???### | | ???????????????## ## ##????????????## | | ????????????????# ##### ##?????????????### & " | | ???????????????## #???###???????????????# # & | | ???????????????# #?????????????????????# #" & | | ???????????????## #?????????????????????# #" " | | ????????????????## #?????????????????????######## | | ?????????????????# ##???????????????????????????? | | ???????????????### #???????????????????????????? | | ??????????????## #???????????????????????????? | | ??????????????# #???????????????????????????? | | ??????????????# #???????????????????????????? | | ??????????????## #???????????????????????????? | | ???????????????# #???????????????????????????? | | ???????????????# #???????????????????????????? | | ??????????????## #???????????????????????????? | | ?????????###### ##??????????????????????????? | +----------------------------------------------------+ Best States ------------- Heat Dissipation 25 Energy Generation 10 Energy Capacity 250 Matter Stores 300 Matter Capacity 300 Sight Range 16 Terrain Scan Density 10 Armor Coverage 100 Core Shielding 20 Evasion (%) 55 Recoil Reduction 2 Item Schematics ----------------- None Robot Schematics ------------------ None Fabricated ------------ Nothing Alien Tech Used ----------------- None Achievements -------------- None Challenges ------------ None Game ------ Seed GrapheneServoCompressor Manual? 0 Play Time 00:22:02 Cumulative 72.0 hours Start 2025.03.22 @ 14:30:31 End 2025.03.30 @ 17:59:25 Sessions 6 Manual Loads 0 Difficulty Rogue Special Mode None Game No. 79 Rogue 79 Adventurer 0 Explorer 0 Win Type - Total 2 Types 2/0/0/0/0/0/0/0/0 Lore% 43 Gallery% 45 Achievement% 40 Wizard Run 0 Options --------- Layout 0 ASCII 0 Keyboard 1 Movement Numpad Keybinds 0 Fullscreen 1 Font 24/Terminus Map View 76x50 Zoom Use 0% Tactical HUD 1 Map Filters NONE Filters NONE Steam 1 RUN: 1c45b353-b9d6-4129-a228-8c4042578964